fUSD/lending_fUSD_20260616
["ID","MTS","AMOUNT","RATE_DAILY","PERIOD"]
[425189080,1781565053000,-151.0,0.00027,7]
[425189075,1781565053000,-151.0,0.00027,7]
[425189081,1781565053000,-151.0,0.00027,7]
[425189084,1781565053000,-151.0,0.00027,7]
[425189086,1781565053000,-151.0,0.00027,7]
[425189083,1781565053000,-151.0,0.00027,7]
[425189029,1781565053000,-151.0,0.00027,7]
[425189079,1781565053000,-151.0,0.00027,7]
[425189061,1781565053000,-151.0,0.00027,7]
[425189085,1781565053000,-151.0,0.00027,7]
[425189053,1781565053000,-151.0,0.00027,7]
[425189058,1781565053000,-151.0,0.00027,7]
[425189032,1781565053000,-151.0,0.00027,7]
[425189034,1781565053000,-151.0,0.00027,7]
[425189030,1781565053000,-151.0,0.00027,7]
[425189037,1781565053000,-151.0,0.00027,7]
[425189038,1781565053000,-151.0,0.00027,7]
[425189082,1781565053000,-151.0,0.00027,7]
[425189039,1781565053000,-151.0,0.00027,7]
[425189043,1781565053000,-151.0,0.00027,7]
[425189040,1781565053000,-151.0,0.00027,7]
[425189045,1781565053000,-151.0,0.00027,7]
[425189046,1781565053000,-151.0,0.00027,7]
[425189033,1781565053000,-151.0,0.00027,7]
[425189042,1781565053000,-151.0,0.00027,7]
[425189041,1781565053000,-151.0,0.00027,7]
[425189055,1781565053000,-151.0,0.00027,7]
[425189054,1781565053000,-151.0,0.00027,7]
[425189052,1781565053000,-151.0,0.00027,7]
[425189050,1781565053000,-151.0,0.00027,7]
[425189057,1781565053000,-151.0,0.00027,7]
[425189048,1781565053000,-151.0,0.00027,7]
[425189059,1781565053000,-151.0,0.00027,7]
[425189049,1781565053000,-151.0,0.00027,7]
[425189047,1781565053000,-151.0,0.00027,7]
[425189051,1781565053000,-151.0,0.00027,7]
[425189056,1781565053000,-151.0,0.00027,7]
[425189111,1781565054000,-151.0,0.00027,7]
[425189114,1781565054000,-187.18331415,0.00027239,7]
[425189130,1781565054000,-177.53739504,0.00027314,7]
[425189113,1781565054000,-1794.78,0.000272,7]
[425189115,1781565054000,-155.50095061,0.00027239,7]
[425189119,1781565054000,-171.67110508,0.00027314,7]
[425189120,1781565054000,-156.37202734,0.00027314,7]
[425189116,1781565054000,-178.17321916,0.00027314,7]
[425189117,1781565054000,-182.35506519,0.00027314,7]
[425189118,1781565054000,-167.14744919,0.00027314,7]
[425189129,1781565054000,-167.50084258,0.00027314,7]
[425189124,1781565054000,-247.74845932,0.00027314,7]
[425189123,1781565054000,-202.16394007,0.00027314,7]
[425189122,1781565054000,-223.73526726,0.00027314,7]
[425189127,1781565054000,-158.84852184,0.00027314,7]
[425189125,1781565054000,-207.36299475,0.00027314,7]
[425189126,1781565054000,-213.65022496,0.00027314,7]
[425189128,1781565054000,-175.72446321,0.00027314,7]
[425189131,1781565054000,-171.27515415,0.00027314,5]
[425189112,1781565054000,-552.0,0.00027137,2]
[425189133,1781565054000,-162.33771559,0.00027314,7]
[425189121,1781565054000,-186.40283555,0.00027314,7]
[425189109,1781565054000,-151.0,0.00027,7]
[425189096,1781565054000,-151.0,0.00027,7]
[425189107,1781565054000,-151.0,0.00027,7]
[425189132,1781565054000,-150.22364828,0.00027314,7]
[425189090,1781565054000,-151.0,0.00027,7]
[425189089,1781565054000,-151.0,0.00027,7]
[425189087,1781565054000,-151.0,0.00027,7]
[425189088,1781565054000,-151.0,0.00027,7]
[425189091,1781565054000,-151.0,0.00027,7]
[425189092,1781565054000,-151.0,0.00027,7]
[425189099,1781565054000,-151.0,0.00027,7]
[425189093,1781565054000,-151.0,0.00027,7]
[425189095,1781565054000,-151.0,0.00027,7]
[425189098,1781565054000,-151.0,0.00027,7]
[425189097,1781565054000,-151.0,0.00027,7]
[425189100,1781565054000,-151.0,0.00027,7]
[425189094,1781565054000,-151.0,0.00027,7]
[425189101,1781565054000,-151.0,0.00027,7]
[425189102,1781565054000,-151.0,0.00027,7]
[425189103,1781565054000,-151.0,0.00027,7]
[425189104,1781565054000,-151.0,0.00027,7]
[425189105,1781565054000,-151.0,0.00027,7]
[425189110,1781565054000,-151.0,0.00027,7]
[425189106,1781565054000,-151.0,0.00027,7]
[425189108,1781565054000,-151.0,0.00027,7]
[425189137,1781565054000,-180.56305373,0.00027314,7]
[425189136,1781565054000,-187.1232781,0.00027314,7]
[425189140,1781565054000,-150.31196967,0.00027314,7]
[425189164,1781565054000,-390.399329,0.00027397,2]
[425189166,1781565054000,-390.399329,0.00027397,2]
[425189165,1781565054000,-390.399329,0.00027397,2]
[425189169,1781565054000,-151.0,0.00027397,2]
[425189168,1781565054000,-300.0,0.00027397,2]
[425189167,1781565054000,-390.399329,0.00027397,2]
[425189170,1781565054000,-496.991102,0.00027397,2]
[425189171,1781565054000,-496.991102,0.00027397,2]
[425189172,1781565054000,-496.991102,0.00027397,2]
[425189173,1781565054000,-269.982709,0.00027397,2]
[425189163,1781565054000,-390.399329,0.00027397,2]
[425189177,1781565054000,-269.982709,0.00027397,2]
[425189174,1781565054000,-496.991102,0.00027397,2]
[425189176,1781565054000,-269.982709,0.00027397,2]
[425189180,1781565054000,-151.0,0.00027397,2]
[425189179,1781565054000,-1000.0,0.00027397,20]
[425189182,1781565054000,-19319.34,0.00027397,10]
[425189184,1781565054000,-151.0,0.00027397,2]
[425189185,1781565054000,-151.0,0.00027397,2]
[425189183,1781565054000,-16099.45,0.00027397,10]
[425189134,1781565054000,-316.22433403,0.00027314,7]
[425189181,1781565054000,-151.0,0.00027397,2]
[425189178,1781565054000,-151.0,0.00027397,2]
[425189162,1781565054000,-390.399329,0.00027397,2]
[425189175,1781565054000,-269.982709,0.00027397,2]
[425189158,1781565054000,-549.36,0.00027397,2]
[425189135,1781565054000,-218.34884941,0.00027314,7]
[425189160,1781565054000,-390.399329,0.00027397,2]
[425189138,1781565054000,-188.53010966,0.00027314,7]
[425189139,1781565054000,-155.22646924,0.00027314,7]
[425189144,1781565054000,-171.06481729,0.00027314,7]
[425189143,1781565054000,-179.24901855,0.00027314,7]
[425189141,1781565054000,-163.59558738,0.00027314,7]
[425189142,1781565054000,-153.43346095,0.00027314,7]
[425189146,1781565054000,-193.89183494,0.00027314,7]
[425189150,1781565054000,-155.574181,0.00027397,2]
[425189149,1781565054000,-410.20149174,0.00027397,7]
[425189147,1781565054000,-394.0,0.00027365,7]
[425189145,1781565054000,-160.72058737,0.00027314,7]
[425189148,1781565054000,-1619.60867713,0.00027397,2]
[425189151,1781565054000,-500.0,0.00027397,15]
[425189153,1781565054000,-500.0,0.00027397,15]
[425189156,1781565054000,-521.99435759,0.00027397,2]
[425189159,1781565054000,-429.72411305,0.00027397,2]
[425189154,1781565054000,-500.0,0.00027397,15]
[425189152,1781565054000,-500.0,0.00027397,15]
[425189161,1781565054000,-390.399329,0.00027397,2]
[425189155,1781565054000,-501.13146997,0.00027397,15]
[425189157,1781565054000,-1500.0,0.00027397,2]
[425189226,1781565055000,-166.72,0.00027671,30]
[425189223,1781565055000,-191.7,0.00027671,30]
[425189213,1781565055000,-167.44421745,0.00027447,7]
[425189224,1781565055000,-166.73,0.00027671,30]
[425189220,1781565055000,-500.0,0.000275,7]
[425189217,1781565055000,-166.42446809,0.00027454,7]
[425189221,1781565055000,-552.0,0.00027671,2]
[425189219,1781565055000,-1958.1,0.00027467,7]
[425189218,1781565055000,-174.18752704,0.00027454,7]
[425189236,1781565055000,-2000.0,0.00027863,7]
[425189222,1781565055000,-191.7,0.00027671,30]
[425189225,1781565055000,-166.73,0.00027671,30]
[425189238,1781565055000,-343.841715,0.000279,14]
[425189227,1781565055000,-330.51356,0.000277,7]
[425189228,1781565055000,-330.51356,0.000277,14]
[425189239,1781565055000,-152.0,0.00027991,6]
[425189230,1781565055000,-321.310849,0.000277,14]
[425189232,1781565055000,-346.841715,0.000277,14]
[425189234,1781565055000,-156.35,0.00027762,2]
[425189231,1781565055000,-346.841715,0.000277,7]
[425189233,1781565055000,-500.0,0.00027758,15]
[425189235,1781565055000,-160.0,0.00027768,3]
[425189248,1781565055000,-300.0,0.00028182,10]
[425189237,1781565055000,-343.841715,0.000279,7]
[425189216,1781565055000,-181.36820226,0.00027454,7]
[425189229,1781565055000,-321.310849,0.000277,7]
[425189214,1781565055000,-154.86445224,0.00027447,7]
[425189189,1781565055000,-190.42591031,0.00027397,7]
[425189212,1781565055000,-152.60088285,0.00027447,7]
[425189246,1781565055000,-151.0,0.0002818,7]
[425189187,1781565055000,-151.0,0.00027397,2]
[425189191,1781565055000,-175.01224612,0.00027397,3]
[425189186,1781565055000,-27480.69,0.00027397,10]
[425189190,1781565055000,-410.20149174,0.00027397,7]
[425189188,1781565055000,-1000.0,0.00027397,30]
[425189192,1781565055000,-150.0,0.00027397,2]
[425189199,1781565055000,-412.841733,0.000274,14]
[425189193,1781565055000,-369.51357,0.000274,7]
[425189196,1781565055000,-360.310857,0.000274,14]
[425189194,1781565055000,-369.51357,0.000274,14]
[425189195,1781565055000,-360.310857,0.000274,7]
[425189215,1781565055000,-178.90974425,0.00027454,2]
[425189200,1781565055000,-2172.91,0.000274,7]
[425189198,1781565055000,-2140.61,0.000274,7]
[425189197,1781565055000,-412.841733,0.000274,7]
[425189202,1781565055000,-166.34495867,0.00027418,7]
[425189210,1781565055000,-185.69261319,0.00027447,7]
[425189211,1781565055000,-152.99729395,0.00027447,7]
[425189203,1781565055000,-180.65922312,0.00027418,7]
[425189204,1781565055000,-162.87140309,0.00027418,7]
[425189205,1781565055000,-192.30239402,0.00027418,7]
[425189207,1781565055000,-173.17490805,0.00027447,7]
[425189206,1781565055000,-955.0,0.00027419,10]
[425189209,1781565055000,-208.90717116,0.00027447,7]
[425189208,1781565055000,-162.48943549,0.00027447,7]
[425189201,1781565055000,-207.18441686,0.00027418,7]
[425189241,1781565055000,-2172.91,0.00028,7]
[425189289,1781565055000,-153.57279734,0.00028606,7]
[425189240,1781565055000,-643.0,0.00028,2]
[425189273,1781565055000,-2175.32401371,0.000286,2]
[425189283,1781565055000,-447.47053452,0.00028606,7]
[425189278,1781565055000,-334.29489839,0.00028606,7]
[425189275,1781565055000,-218.75734509,0.00028606,7]
[425189282,1781565055000,-372.80567109,0.00028606,7]
[425189279,1781565055000,-343.34221016,0.00028606,7]
[425189276,1781565055000,-356.34643833,0.00028606,7]
[425189281,1781565055000,-312.74405468,0.00028606,7]
[425189277,1781565055000,-364.71013037,0.00028606,7]
[425189280,1781565055000,-414.72598951,0.00028606,7]
[425189287,1781565055000,-317.69704368,0.00028606,7]
[425189291,1781565055000,-355.07479007,0.00028606,7]
[425189284,1781565055000,-404.32788013,0.00028606,7]
[425189286,1781565055000,-427.30044991,0.00028606,7]
[425189288,1781565055000,-351.44892641,0.00028606,7]
[425189294,1781565055000,-300.44729655,0.00028606,7]
[425189293,1781565055000,-342.55030831,0.00028606,5]
[425189292,1781565055000,-197.67985986,0.00028606,5]
[425189296,1781565055000,-324.67543118,0.00028606,7]
[425189295,1781565055000,-196.96256927,0.00028606,7]
[425189301,1781565055000,-361.12610747,0.00028606,7]
[425189300,1781565055000,-374.24655619,0.00028606,7]
[425189299,1781565055000,-436.69769882,0.00028606,7]
[425189298,1781565055000,-632.44866806,0.00028606,7]
[425189297,1781565055000,-245.53912411,0.00028606,7]
[425189242,1781565055000,-80461.0,0.000281,2]
[425189290,1781565055000,-335.00168515,0.00028606,7]
[425189274,1781565055000,-2175.32401371,0.000286,2]
[425189285,1781565055000,-495.49691863,0.00028606,7]
[425189269,1781565055000,-544.0,0.00028588,7]
[425189270,1781565055000,-500.0,0.00028591,16]
[425189243,1781565055000,-2327.0,0.00028103,3]
[425189247,1781565055000,-151.0,0.0002818,7]
[425189244,1781565055000,-2327.0,0.00028103,3]
[425189260,1781565055000,-2140.61,0.000283,7]
[425189261,1781565055000,-2327.0,0.00028408,3]
[425189250,1781565055000,-517260.0,0.00028183,2]
[425189249,1781565055000,-300.0,0.00028182,10]
[425189251,1781565055000,-42169.11,0.000282,2]
[425189254,1781565055000,-318.310849,0.000282,7]
[425189255,1781565055000,-318.310849,0.000282,14]
[425189257,1781565055000,-349.841715,0.000282,14]
[425189252,1781565055000,-327.51356,0.000282,7]
[425189245,1781565055000,-160.0,0.00028103,3]
[425189259,1781565055000,-1433.8,0.00028267,2]
[425189258,1781565055000,-552.0,0.00028205,3]
[425189267,1781565055000,-311.00190122,0.00028527,7]
[425189266,1781565055000,-2286.2106352,0.000285,2]
[425189265,1781565055000,-2286.2106352,0.000285,2]
[425189263,1781565055000,-346.841715,0.000285,14]
[425189264,1781565055000,-2286.21063522,0.000285,2]
[425189268,1781565055000,-160.0,0.00028576,3]
[425189272,1781565055000,-2175.32401373,0.000286,2]
[425189262,1781565055000,-346.841715,0.000285,7]
[425189256,1781565055000,-349.841715,0.000282,7]
[425189253,1781565055000,-327.51356,0.000282,14]
[425189271,1781565055000,-2172.91,0.000286,7]
[425189335,1781565056000,-1280.42,0.00028728,7]
[425189338,1781565056000,-417.81434232,0.00028743,7]
[425189337,1781565056000,-324.97887097,0.00028743,7]
[425189330,1781565056000,-325.74280619,0.00028713,7]
[425189341,1781565056000,-305.2017657,0.00028743,7]
[425189340,1781565056000,-305.99458789,0.00028743,7]
[425189342,1781565056000,-334.88843491,0.00028743,7]
[425189344,1781565056000,-357.81948851,0.0002875,2]
[425189334,1781565056000,-160.0,0.00028728,3]
[425189339,1781565056000,-371.38522638,0.00028743,7]
[425189336,1781565056000,-552.0,0.00028739,3]
[425189343,1781565056000,-309.72890447,0.00028743,7]
[425189346,1781565056000,-362.73640453,0.0002875,7]
[425189347,1781565056000,-332.84893618,0.0002875,7]
[425189348,1781565056000,-348.37505407,0.0002875,7]
[425189349,1781565056000,-1108.26,0.00028756,7]
[425189350,1781565056000,-1104.31,0.00028756,7]
[425189359,1781565056000,-3466.31,0.00028797,7]
[425189351,1781565056000,-180.10902265,0.00028767,30]
[425189352,1781565056000,-1000.0,0.00028767,40]
[425189353,1781565056000,-153.84237965,0.00028767,2]
[425189355,1781565056000,-1104.31,0.00028788,30]
[425189354,1781565056000,-1108.26,0.00028788,30]
[425189356,1781565056000,-3998.92,0.00028797,7]
[425189360,1781565056000,-1898.92,0.00028797,7]
[425189327,1781565056000,-218.03766203,0.00028713,7]
[425189345,1781565056000,-359.0687958,0.0002875,7]
[425189329,1781565056000,-361.31844625,0.00028713,7]
[425189307,1781565056000,-358.4980371,0.00028606,7]
[425189326,1781565056000,-414.36883372,0.00028713,7]
[425189308,1781565056000,-342.12963458,0.00028606,7]
[425189304,1781565056000,-300.62393935,0.00028606,7]
[425189302,1781565056000,-377.06021931,0.00028606,7]
[425189303,1781565056000,-310.45293848,0.00028606,7]
[425189309,1781565056000,-321.44117474,0.00028606,7]
[425189306,1781565056000,-306.86692191,0.00028606,7]
[425189305,1781565056000,-327.19117477,0.00028606,7]
[425189310,1781565056000,-380.85182062,0.00028606,7]
[425189320,1781565056000,-240.68537949,0.0002863,30]
[425189313,1781565056000,-3998.92,0.0002863,30]
[425189319,1781565056000,-1885.0,0.0002863,30]
[425189311,1781565056000,-387.78366988,0.00028606,7]
[425189328,1781565056000,-332.68991734,0.00028713,7]
[425189316,1781565056000,-4053.36,0.0002863,30]
[425189314,1781565056000,-3493.63,0.0002863,30]
[425189318,1781565056000,-1104.31,0.0002863,2]
[425189317,1781565056000,-3466.31,0.0002863,30]
[425189321,1781565056000,-1108.26,0.00028661,7]
[425189315,1781565056000,-1108.26,0.0002863,2]
[425189323,1781565056000,-1108.26,0.00028693,30]
[425189331,1781565056000,-384.60478803,0.00028713,7]
[425189332,1781565056000,-1108.26,0.00028725,2]
[425189333,1781565056000,-1104.31,0.00028725,2]
[425189324,1781565056000,-1104.31,0.00028693,30]
[425189325,1781565056000,-1794.78,0.000287,7]
[425189322,1781565056000,-1104.31,0.00028661,7]
[425189312,1781565056000,-456.25,0.0002863,2]
[425189362,1781565056000,-333.51356,0.000288,7]
[425189379,1781565056000,-1104.31,0.00028915,2]
[425189366,1781565056000,-343.841715,0.000288,7]
[425189392,1781565056000,-500.0,0.00029,2]
[425189403,1781565056000,-220.02544756,0.00029,2]
[425189393,1781565056000,-500.0,0.00029,2]
[425189395,1781565056000,-500.0,0.00029,2]
[425189398,1781565056000,-500.0,0.00029,2]
[425189400,1781565056000,-500.0,0.00029,2]
[425189394,1781565056000,-500.0,0.00029,2]
[425189397,1781565056000,-500.0,0.00029,2]
[425189401,1781565056000,-500.0,0.00029,2]
[425189396,1781565056000,-500.0,0.00029,2]
[425189399,1781565056000,-500.0,0.00029,2]
[425189404,1781565056000,-2324.96507076,0.00029,2]
[425189391,1781565056000,-500.0,0.00029,2]
[425189408,1781565056000,-248.82,0.00029,2]
[425189414,1781565056000,-10000.0,0.00029,2]
[425189411,1781565056000,-349.841715,0.00029,14]
[425189412,1781565056000,-5790.0,0.00029,7]
[425189410,1781565056000,-2446.35929638,0.00029,2]
[425189407,1781565056000,-500.0,0.00029,2]
[425189405,1781565056000,-1251.80052245,0.00029,7]
[425189413,1781565056000,-500.0,0.00029,2]
[425189415,1781565056000,-500.0,0.00029,2]
[425189417,1781565056000,-500.0,0.00029,2]
[425189416,1781565056000,-1135.4,0.00029,7]
[425189418,1781565056000,-500.0,0.00029,2]
[425189361,1781565056000,-1885.0,0.00028797,7]
[425189409,1781565056000,-349.841715,0.00029,7]
[425189402,1781565056000,-500.0,0.00029,2]
[425189406,1781565056000,-500.0,0.00029,2]
[425189389,1781565056000,-1108.26,0.00028979,30]
[425189388,1781565056000,-1885.0,0.00028964,2]
[425189357,1781565056000,-3493.63,0.00028797,7]
[425189358,1781565056000,-4053.36,0.00028797,7]
[425189364,1781565056000,-324.310849,0.000288,7]
[425189363,1781565056000,-333.51356,0.000288,14]
[425189365,1781565056000,-324.310849,0.000288,14]
[425189367,1781565056000,-343.841715,0.000288,14]
[425189378,1781565056000,-1108.26,0.00028915,2]
[425189368,1781565056000,-764.0,0.00028801,10]
[425189370,1781565056000,-1108.26,0.0002882,2]
[425189374,1781565056000,-1108.26,0.00028883,30]
[425189372,1781565056000,-1108.26,0.00028852,7]
[425189371,1781565056000,-1104.31,0.0002882,2]
[425189369,1781565056000,-205.15823594,0.00028817,4]
[425189385,1781565056000,-4053.36,0.00028964,2]
[425189384,1781565056000,-3493.63,0.00028964,2]
[425189375,1781565056000,-1104.31,0.00028883,30]
[425189382,1781565056000,-1104.31,0.00028947,7]
[425189387,1781565056000,-1898.92,0.00028964,2]
[425189381,1781565056000,-1108.26,0.00028947,7]
[425189383,1781565056000,-3998.92,0.00028964,2]
[425189386,1781565056000,-3466.31,0.00028964,2]
[425189380,1781565056000,-2000.0,0.00028932,7]
[425189377,1781565056000,-200.0,0.000289,2]
[425189373,1781565056000,-1104.31,0.00028852,7]
[425189376,1781565056000,-2140.61,0.000289,7]
[425189390,1781565056000,-1104.31,0.00028979,30]
[425189459,1781565057000,-1104.31,0.00029169,30]
[425189465,1781565057000,-1108.26,0.00029201,2]
[425189463,1781565057000,-200.0,0.00029201,30]
[425189457,1781565057000,-1104.31,0.00029137,7]
[425189464,1781565057000,-2183.0,0.00029201,30]
[425189446,1781565057000,-1473.0,0.0002913,30]
[425189454,1781565057000,-1898.92,0.00029132,30]
[425189444,1781565057000,-308.0,0.0002913,30]
[425189447,1781565057000,-352.0,0.0002913,30]
[425189445,1781565057000,-181.0,0.0002913,30]
[425189460,1781565057000,-151.0,0.00029185,30]
[425189458,1781565057000,-1108.26,0.00029169,30]
[425189456,1781565057000,-1108.26,0.00029137,7]
[425189471,1781565057000,-1104.5,0.00029232,7]
[425189462,1781565057000,-214.0,0.00029201,30]
[425189461,1781565057000,-282.0,0.00029185,30]
[425189467,1781565057000,-232.07,0.00029212,16]
[425189476,1781565057000,-4053.36,0.00029299,7]
[425189475,1781565057000,-3493.63,0.00029299,7]
[425189466,1781565057000,-1104.31,0.00029201,2]
[425189477,1781565057000,-3466.31,0.00029299,7]
[425189473,1781565057000,-152.0,0.00029287,7]
[425189468,1781565057000,-160.0,0.00029215,3]
[425189470,1781565057000,-1108.44,0.00029232,7]
[425189472,1781565057000,-552.0,0.00029273,4]
[425189469,1781565057000,-2327.0,0.00029215,3]
[425189443,1781565057000,-888.0,0.0002913,30]
[425189455,1781565057000,-1885.0,0.00029132,30]
[425189450,1781565057000,-3998.92,0.00029132,30]
[425189427,1781565057000,-2162.47549,0.00029,2]
[425189453,1781565057000,-3466.31,0.00029132,30]
[425189474,1781565057000,-3998.92,0.00029299,7]
[425189428,1781565057000,-1108.26,0.0002901,2]
[425189425,1781565057000,-2162.47546,0.00029,2]
[425189423,1781565057000,-2162.47546,0.00029,2]
[425189420,1781565057000,-797.96209157,0.00029,2]
[425189424,1781565057000,-2162.47546,0.00029,2]
[425189419,1781565057000,-500.0,0.00029,2]
[425189426,1781565057000,-2162.47546,0.00029,2]
[425189422,1781565057000,-5528.0,0.00029,3]
[425189421,1781565057000,-500.0,0.00029,2]
[425189429,1781565057000,-1104.31,0.0002901,2]
[425189434,1781565057000,-1108.26,0.00029042,7]
[425189432,1781565057000,-3645.0,0.00029036,2]
[425189439,1781565057000,-1108.26,0.00029105,2]
[425189431,1781565057000,-1228.0,0.00029036,2]
[425189435,1781565057000,-1104.31,0.00029042,7]
[425189437,1781565057000,-1104.31,0.00029074,30]
[425189436,1781565057000,-1108.26,0.00029074,30]
[425189433,1781565057000,-6078.0,0.00029036,2]
[425189440,1781565057000,-1104.31,0.00029105,2]
[425189430,1781565057000,-1359.0,0.00029036,2]
[425189438,1781565057000,-2172.91,0.000291,7]
[425189442,1781565057000,-247.0,0.0002913,30]
[425189448,1781565057000,-152.0,0.0002913,30]
[425189452,1781565057000,-4053.36,0.00029132,30]
[425189441,1781565057000,-184.0,0.0002913,30]
[425189451,1781565057000,-3493.63,0.00029132,30]
[425189449,1781565057000,-300.0,0.0002913,20]
[425189480,1781565057000,-330.51356,0.000293,7]
[425189478,1781565057000,-1898.92,0.00029299,7]
[425189481,1781565057000,-330.51356,0.000293,14]
[425189514,1781565057000,-450.67094483,0.00029466,7]
[425189526,1781565057000,-232.82069373,0.00029466,7]
[425189516,1781565057000,-393.92513854,0.00029466,7]
[425189527,1781565057000,-561.36983429,0.00029466,7]
[425189515,1781565057000,-211.86948678,0.00029466,7]
[425189517,1781565057000,-233.93731555,0.00029466,7]
[425189518,1781565057000,-487.01314678,0.00029466,7]
[425189528,1781565057000,-541.6891612,0.00029466,7]
[425189519,1781565057000,-491.07824823,0.00029466,7]
[425189522,1781565057000,-267.69545994,0.00029466,7]
[425189523,1781565057000,-202.45675445,0.00029466,7]
[425189521,1781565057000,-246.69426731,0.00029466,7]
[425189520,1781565057000,-227.13480141,0.00029466,7]
[425189512,1781565057000,-272.41782362,0.00029466,7]
[425189524,1781565057000,-948.67300209,0.00029466,7]
[425189529,1781565057000,-289.66128846,0.00029466,7]
[425189531,1781565057000,-465.67940772,0.00029466,7]
[425189532,1781565057000,-450.93590902,0.00029466,7]
[425189535,1781565057000,-537.74705565,0.00029466,7]
[425189536,1781565057000,-513.19445187,0.00029466,7]
[425189530,1781565057000,-565.59032897,0.00029466,7]
[425189534,1781565057000,-460.30038286,0.00029466,7]
[425189533,1781565057000,-490.78676215,0.00029466,7]
[425189537,1781565057000,-482.16176211,0.00029466,7]
[425189539,1781565057000,-174.97618781,0.00029466,7]
[425189540,1781565057000,-571.27773093,0.00029466,7]
[425189538,1781565057000,-202.4671844,0.00029466,7]
[425189486,1781565057000,-232.976,0.00029333,2]
[425189525,1781565057000,-655.04654823,0.00029466,7]
[425189513,1781565057000,-513.82546246,0.00029466,5]
[425189541,1781565057000,-581.67550482,0.00029466,7]
[425189510,1781565057000,-532.61218511,0.00029466,7]
[425189509,1781565057000,-502.50252773,0.00029466,7]
[425189485,1781565057000,-300.0,0.0002933,7]
[425189487,1781565057000,-466.50285182,0.00029387,7]
[425189483,1781565057000,-321.310849,0.000293,14]
[425189482,1781565057000,-321.310849,0.000293,7]
[425189489,1781565057000,-500.0,0.00029449,18]
[425189479,1781565057000,-1885.0,0.00029299,7]
[425189484,1781565057000,-2327.0,0.00029308,3]
[425189499,1781565057000,-671.20580178,0.00029466,7]
[425189490,1781565057000,-437.51469018,0.00029466,7]
[425189491,1781565057000,-534.51965749,0.00029466,7]
[425189502,1781565057000,-606.4918202,0.00029466,7]
[425189500,1781565057000,-165.50677754,0.00029466,7]
[425189501,1781565057000,-217.46657384,0.00029466,7]
[425189488,1781565057000,-205.12137835,0.00029403,3]
[425189495,1781565057000,-515.01331524,0.00029466,7]
[425189493,1781565057000,-547.06519556,0.00029466,7]
[425189507,1781565057000,-527.17338962,0.00029466,7]
[425189511,1781565057000,-395.35971973,0.00029466,5]
[425189506,1781565057000,-476.54556552,0.00029466,7]
[425189505,1781565057000,-640.95067487,0.00029466,7]
[425189504,1781565057000,-743.24537795,0.00029466,7]
[425189503,1781565057000,-225.70663089,0.00029466,7]
[425189508,1781565057000,-307.14559469,0.00029466,7]
[425189494,1781565057000,-501.44234758,0.00029466,7]
[425189497,1781565057000,-469.11608202,0.00029466,7]
[425189496,1781565057000,-622.08898426,0.00029466,7]
[425189492,1781565057000,-193.13878189,0.00029466,7]
[425189498,1781565057000,-559.20850664,0.00029466,7]
[425189582,1781565058000,-499.27340427,0.00029614,7]
[425189584,1781565058000,-522.56258111,0.00029614,7]
[425189588,1781565058000,-500.0,0.0002977,2]
[425189580,1781565058000,-544.10460679,0.00029614,7]
[425189581,1781565058000,-249.56959094,0.00029614,7]
[425189573,1781565058000,-245.77373945,0.00029607,7]
[425189576,1781565058000,-502.33265236,0.00029607,7]
[425189574,1781565058000,-458.99188184,0.00029607,7]